bitfinex-derivatives/quotes_ETHF0:USTF0_20250912
["timestamp","ask_amount","ask_price","bid_price","bid_amount"]
[1757715701394,3.2078,4732.9,4730.9,3.2078]
[1757715701690,3.2078,4736.8,4732.8,3.2078]
[1757715701893,0.83465272,4738.8,4735.3,3.2078]
[1757715702088,3.2078,4740.2,4738.5,3.2078]
[1757715702282,3.2078,4740.2,4739.2,3.00170452]
[1757715702594,0.46949306,4739.2,4738.6,2.79723934]
[1757715702779,3.2078,4740.9,4738.8,3.2078]
[1757715702981,3.2078,4745.4,4741.7,3.2078]
[1757715703187,0.1952,4744.7,4742.7,3.2078]
[1757715703487,0.1952,4746.4,4743.8,3.2078]
[1757715703680,3.2078,4745.7,4744.6,3.2078]
[1757715703879,3.2078,4745.7,4737.4,9.49131]
[1757715703880,3.2078,4748.4,4745.6,3.2078]
[1757715704085,0.1952,4751.9,4748.6,3.2078]
[1757715704286,30.568,4751.8,4747.3,3.2078]
[1757715704590,3.2078,4751.2,4749.8,0.1967]
[1757715704784,2.71416909,4751.7,4746.1,2.38972066]
[1757715704981,3.2078,4750.9,4749.9,2.73195912]
[1757715705187,3.2078,4751.6,4749.9,3.20955912]
[1757715705382,0.00416585,4759.0,4747.6,0.1967]
[1757715705383,3.2078,4750.3,4747.6,0.1967]
[1757715705586,3.2078,4748.2,4744.5,3.2078]
[1757715705788,3.2078,4747.1,4743.7,3.2078]
[1757715706089,0.424,4748.4,4747.6,0.1967]
[1757715706283,0.424,4748.4,4745.4,3.4045]
[1757715706284,3.2078,4749.4,4747.2,3.2078]
[1757715706490,3.2078,4749.9,4748.4,3.2078]
[1757715706682,3.2078,4748.5,4746.2,3.2078]
[1757715706882,3.2078,4748.5,4738.7,191.36454]
[1757715706883,3.2078,4745.5,4742.3,3.2078]
[1757715707087,0.41839738,4741.8,4740.2,3.2078]
[1757715707287,3.2078,4742.1,4740.0,3.2078]
[1757715707484,3.2078,4741.1,4739.9,1.0867]
[1757715707689,0.423,4742.0,4738.1,3.2078]
[1757715707690,3.4045,4740.0,4738.1,3.2078]
[1757715707890,3.4045,4740.0,4737.5,1.0867]
[1757715707891,30.923,4739.9,4737.5,1.0867]
[1757715708090,3.2078,4737.7,4737.5,1.0867]
[1757715708286,0.423,4738.0,4737.6,2.76460296]
[1757715708489,3.2078,4739.0,4736.7,1.0867]
[1757715708690,0.423,4738.9,4736.7,2.76460296]
[1757715708887,0.423,4738.9,4735.6,4.2945]
[1757715708888,3.2078,4738.7,4736.2,3.2078]
[1757715709188,3.2078,4738.7,4735.5,0.436]
[1757715709189,3.2078,4737.6,4736.4,1.0867]
[1757715709396,30.482,4737.6,4736.3,2.75710543]
[1757715709694,3.2078,4736.4,4733.2,1.0867]
[1757715709891,3.2078,4735.3,4733.2,1.0867]
[1757715710084,3.2078,4734.8,4733.5,0.87843992]
[1757715710288,3.2078,4734.5,4733.2,3.2078]
[1757715710490,3.2078,4736.6,4734.5,1.0867]
[1757715710685,0.423,4736.5,4734.5,1.0867]
[1757715710983,0.423,4736.5,4732.4,3.2078]
[1757715710984,3.2078,4734.7,4732.4,3.2078]
[1757715711187,0.41839738,4733.4,4732.2,1.0867]
[1757715711387,3.2078,4732.9,4731.5,3.2078]
[1757715711586,3.2078,4731.8,4729.2,0.436]
[1757715711791,3.2078,4729.7,4728.5,3.2078]
[1757715711992,3.2078,4728.6,4727.3,3.2078]
[1757715712296,3.2078,4728.1,4727.1,3.2078]
[1757715712502,3.2078,4730.4,4728.1,1.0867]
[1757715712704,3.2078,4730.3,4729.0,1.0867]
[1757715712900,3.2078,4731.3,4729.2,3.2078]
[1757715713099,3.2078,4731.3,4729.9,1.0867]
[1757715713301,3.6308,4731.2,4729.9,1.0867]
[1757715713499,30.463,4731.9,4730.7,3.2078]
[1757715713697,3.2078,4731.2,4730.0,2.75891072]
[1757715713899,3.2078,4730.9,4729.9,1.0867]
[1757715714108,0.423,4730.8,4730.4,4.2945]
[1757715714300,0.423,4730.7,4729.3,3.2078]
[1757715714507,3.2078,4731.0,4729.9,3.2078]
[1757715714703,0.41839738,4730.3,4729.1,3.2078]
[1757715714898,3.2078,4729.2,4726.9,1.0867]
[1757715715101,190.396,4735.7,4725.6,0.436]
[1757715715102,3.2078,4727.3,4725.6,0.436]
[1757715715403,3.2078,4726.0,4725.6,0.436]
[1757715715604,1.0136,4728.3,4725.8,1.0867]
[1757715715908,0.423,4728.2,4726.2,3.2078]
[1757715716100,3.2078,4728.8,4726.7,3.2078]
[1757715716306,30.46,4729.2,4727.7,3.2078]
[1757715716504,0.41839738,4728.8,4727.0,1.0867]
[1757715716806,0.41839738,4727.1,4726.0,2.70887575]
[1757715717001,30.46,4727.1,4726.1,3.2078]
[1757715717197,3.2078,4727.0,4726.1,3.2078]
[1757715717397,3.2078,4727.5,4726.1,3.2078]
[1757715717598,3.2078,4727.5,4726.6,3.2078]
[1757715717804,3.2078,4728.3,4727.1,3.2078]
[1757715718007,2.6669,4728.3,4727.2,4.423]
[1757715718201,2.6669,4728.3,4727.2,7.13927015]
[1757715718404,2.6669,4728.3,4727.2,2.71627015]
[1757715718606,3.2078,4728.4,4727.1,3.2078]
[1757715718806,3.2078,4728.4,4727.2,2.71627015]
[1757715719310,1.1593,4728.2,4726.0,3.2078]
[1757715719508,3.2078,4727.3,4726.3,3.2078]
[1757715719708,1.1593,4727.4,4726.3,3.2078]
[1757715719908,3.2078,4727.8,4726.3,3.2078]
[1757715720112,1.1593,4728.4,4726.4,2.80131178]
[1757715720412,3.2078,4728.6,4727.5,3.2078]
[1757715720602,0.4899,4728.0,4727.0,3.2078]
[1757715720803,0.4899,4726.0,4724.7,3.2078]
[1757715721111,0.4899,4726.0,4721.9,190.386]
[1757715721112,0.4899,4726.0,4724.2,2.74659562]
[1757715721307,3.2078,4724.9,4724.2,0.21139562]
[1757715721607,0.41839738,4724.3,4722.8,0.16091978]
[1757715721807,1.1593,4724.4,4722.8,0.16091978]
[1757715722009,0.41839738,4723.8,4723.2,3.2078]
[1757715722207,0.08774131,4723.6,4723.2,3.2078]
[1757715722401,0.41839738,4723.3,4723.2,3.2078]
[1757715722602,0.41839738,4723.3,4722.8,0.16091978]
[1757715722802,30.462,4724.1,4723.1,3.2078]
[1757715723016,3.2078,4725.7,4723.6,3.2078]
[1757715723211,3.2078,4725.2,4723.7,3.2078]
[1757715723415,0.423,4725.6,4723.7,3.2078]
[1757715723416,3.2078,4725.7,4723.7,3.2078]
[1757715723614,0.423,4725.6,4724.4,3.2078]
[1757715724008,0.41839738,4724.5,4724.4,3.2078]
[1757715724210,30.462,4725.8,4724.4,3.2078]
[1757715724413,3.2078,4725.5,4724.4,3.2078]
[1757715724714,0.423,4725.4,4724.1,3.2078]
[1757715725011,30.89,4725.5,4725.3,3.2078]
[1757715725212,0.423,4726.2,4725.3,3.2078]
[1757715725416,3.2078,4727.4,4726.1,3.2078]
[1757715725713,3.2078,4727.4,4724.8,1.1459]
[1757715725714,30.468,4727.7,4726.6,1.311]
[1757715725915,0.41839738,4725.2,4724.8,4.3537]
[1757715726110,3.24463522,4727.2,4724.8,4.3537]
[1757715726416,3.24463522,4727.2,4725.8,3.2078]
[1757715726608,3.2078,4726.6,4724.7,3.2078]
[1757715726810,3.2078,4726.6,4723.5,1.1459]
[1757715726811,0.423,4726.5,4724.8,3.2078]
[1757715727007,3.24463522,4727.2,4725.1,3.2078]
[1757715727310,0.423,4727.1,4726.4,3.2078]
[1757715727509,0.41839738,4726.5,4726.4,3.2078]
[1757715727716,0.41839738,4727.0,4726.8,0.4903]
[1757715728015,0.423,4727.3,4726.9,3.2078]
[1757715728208,0.423,4727.3,4727.0,0.23754864]
[1757715728412,0.423,4727.2,4727.1,0.25366579]
[1757715728610,29.81944131,4727.7,4727.1,3.2078]
[1757715728817,29.81944131,4727.7,4726.6,0.25366579]
[1757715729009,0.0368322,4727.6,4726.3,0.25366579]
[1757715729209,0.0368322,4727.6,4726.7,3.2078]
[1757715729411,0.423,4727.5,4727.2,3.2078]
[1757715729609,0.423,4727.5,4727.3,0.25366579]
[1757715729808,29.81944131,4727.7,4727.4,0.25366579]
[1757715730007,0.423,4727.6,4727.5,0.25366579]
[1757715730206,29.81944131,4727.7,4727.5,0.25366579]
[1757715730416,0.84139738,4727.6,4726.9,3.2078]
[1757715730612,4.423,4727.6,4727.0,0.2576774]
[1757715730812,3.2078,4727.4,4725.8,3.2078]
[1757715731018,3.2078,4726.9,4725.5,3.2078]
[1757715731212,29.85627201,4727.7,4725.5,3.2078]
[1757715731213,3.2078,4726.6,4725.5,3.2078]
[1757715731520,0.423,4726.5,4726.1,3.2078]
[1757715731718,29.85627201,4727.7,4726.1,3.2078]
[1757715731921,29.85627201,4727.7,4727.1,3.2078]
[1757715731922,29.81944131,4727.7,4727.1,3.2078]
[1757715732216,3.2078,4728.5,4727.4,1.1459]
[1757715732417,0.423,4728.4,4727.4,1.1459]
[1757715732717,7.2078,4728.4,4727.1,3.2078]
[1757715732916,3.2078,4728.4,4727.1,3.2078]
[1757715733115,3.2078,4728.2,4726.5,1.1459]
[1757715733318,0.423,4728.1,4726.8,3.2078]
[1757715733623,3.2078,4727.6,4726.4,3.2078]
[1757715733816,3.2078,4727.1,4726.0,0.4903]
[1757715734115,30.472,4727.5,4727.0,3.2078]
[1757715734318,0.423,4727.4,4727.0,1.1459]
[1757715734519,29.82344131,4727.5,4727.3,3.2078]
[1757715734712,0.423,4727.7,4727.4,1.1459]
[1757715734916,0.423,4727.6,4727.3,3.2078]
[1757715735115,0.423,4727.6,4727.0,3.2078]
[1757715735323,3.2078,4728.4,4727.0,3.2078]
[1757715735616,30.472,4729.1,4728.2,3.2078]
[1757715735919,0.423,4729.0,4728.2,3.2078]
[1757715736118,0.423,4729.0,4728.0,3.6981]
[1757715736319,4.0,4728.9,4728.0,3.2078]
[1757715736512,0.03682094,4729.0,4728.2,3.2078]
[1757715736823,3.2078,4728.7,4727.6,3.2078]
[1757715737324,0.423,4728.6,4727.6,3.2078]
[1757715737512,0.423,4728.5,4727.6,3.2078]
[1757715737817,0.423,4728.5,4726.0,0.4903]
[1757715737818,0.0634,4728.4,4727.7,3.2078]
[1757715738024,0.0634,4728.4,4726.0,0.4903]
[1757715738025,0.423,4728.3,4728.2,3.2078]
[1757715738217,0.0634,4728.4,4728.3,1.1459]
[1757715738622,30.471,4729.1,4728.3,4.0]
[1757715738819,0.423,4729.0,4728.4,1.1459]
[1757715739215,30.471,4729.1,4728.4,1.1459]
[1757715739413,3.2078,4729.3,4728.3,1.1459]
[1757715739617,1.9402,4729.3,4728.6,1.1459]
[1757715740019,0.423,4729.2,4728.6,1.1459]
[1757715740317,0.423,4729.2,4728.2,3.2078]
[1757715740517,0.423,4729.1,4728.2,3.2078]
[1757715740915,0.423,4729.1,4726.0,0.4903]
[1757715740916,0.02404131,4729.3,4729.2,0.4903]
[1757715741214,3.2078,4729.7,4729.3,1.1459]
[1757715741524,3.2078,4729.7,4728.8,1.1459]
[1757715742317,0.423,4729.6,4728.8,1.1459]
[1757715742517,3.2078,4729.2,4728.5,3.2078]
[1757715742722,0.423,4729.1,4728.5,3.2078]
[1757715742920,0.423,4729.1,4728.0,3.2078]
[1757715743218,0.423,4729.0,4728.5,3.2078]
[1757715743614,0.423,4729.0,4728.4,3.2078]
[1757715744319,0.423,4729.0,4728.5,3.2078]
[1757715744515,0.423,4729.0,4727.8,3.2078]
[1757715744720,0.423,4729.0,4727.5,3.2078]
[1757715744914,0.423,4729.0,4727.8,3.2078]
[1757715745114,0.423,4728.9,4727.8,3.2078]
[1757715745322,3.2078,4729.2,4727.8,3.2078]
[1757715745719,0.423,4729.1,4728.1,0.4903]
[1757715745922,0.423,4729.1,4728.2,1.1459]
[1757715746525,0.423,4729.0,4728.3,3.2078]
[1757715746726,0.0634,4729.5,4728.4,1.1459]
[1757715746922,1.9402,4729.7,4728.9,1.3466]
[1757715747324,2.3632,4729.7,4728.9,1.3466]
[1757715747827,1.9402,4729.7,4728.9,1.3466]
[1757715748018,1.9402,4729.7,4728.8,3.2078]
[1757715748019,0.423,4729.6,4728.8,3.2078]
[1757715749020,1.3419,4729.3,4728.2,3.2078]
[1757715749224,1.3419,4729.0,4727.5,3.2078]
[1757715749523,2.13624131,4727.8,4725.7,0.51670659]
[1757715749727,30.461,4727.7,4726.9,3.2078]
[1757715749922,0.423,4727.6,4727.1,2.948]
[1757715750124,30.461,4727.7,4727.1,3.2078]
[1757715750421,30.461,4727.7,4727.6,3.2078]
[1757715750621,30.884,4727.7,4727.6,3.2078]
[1757715751027,30.461,4727.7,4727.6,4.5544]
[1757715751227,30.461,4727.7,4727.6,3.2078]
[1757715751228,30.884,4727.7,4727.6,3.2078]
[1757715751428,30.884,4727.7,4726.7,1.3466]
[1757715751429,34.461,4727.7,4727.5,3.2078]
[1757715751626,0.423,4727.6,4727.5,3.2078]
[1757715751830,30.461,4727.7,4727.6,1.3466]
[1757715752124,30.884,4727.7,4727.6,1.3466]
[1757715752324,30.461,4727.7,4727.6,1.3466]
[1757715752626,29.81244131,4727.7,4727.6,1.3466]
[1757715752823,29.38944131,4727.7,4727.6,1.3466]
[1757715753020,0.0634,4728.9,4727.6,5.3466]
[1757715753224,0.423,4728.8,4728.5,3.2078]
[1757715753623,33.6718,4729.3,4728.5,3.2078]
[1757715753928,33.6718,4729.3,4728.6,1.3466]
[1757715754131,0.423,4729.2,4728.5,3.2078]
[1757715754428,0.423,4729.1,4728.1,0.5243]
[1757715754624,0.423,4729.1,4728.0,3.2078]
[1757715754625,3.2078,4728.7,4728.0,3.2078]
[1757715754827,0.423,4728.6,4727.1,3.2078]
[1757715755023,3.2078,4728.7,4727.6,3.2078]
[1757715755223,0.423,4728.6,4727.7,3.2078]
[1757715755426,0.423,4728.6,4727.9,3.2078]
[1757715755427,1.00850298,4728.1,4727.9,3.2078]
[1757715755627,0.423,4728.0,4727.9,3.2078]
[1757715756533,4.423,4728.0,4727.1,3.2078]
[1757715756729,0.423,4728.0,4727.1,3.2078]
[1757715757028,4.0,4727.9,4727.1,3.2078]
[1757715757420,0.0634,4728.0,4727.1,3.2078]
[1757715757630,0.423,4727.9,4727.7,3.2078]
[1757715758034,0.0634,4728.0,4727.7,3.2078]
[1757715758236,0.423,4727.9,4727.7,3.2078]
[1757715758426,0.423,4727.8,4727.7,3.2078]
[1757715758735,0.423,4727.8,4727.7,4.5544]
[1757715758926,33.08664131,4729.3,4727.7,4.5544]
[1757715759126,0.423,4729.2,4728.3,3.2078]
[1757715759622,3.2078,4729.3,4728.4,1.3466]
[1757715759827,0.423,4729.2,4728.4,1.3466]
[1757715761029,0.423,4729.2,4728.3,3.2078]
[1757715761335,3.2078,4729.2,4728.1,3.2078]
[1757715761534,0.423,4729.1,4728.1,4.5544]
[1757715761834,2.70387976,4729.2,4728.1,4.5544]
[1757715762035,2.70387976,4729.2,4728.2,1.3466]
[1757715762237,0.423,4729.1,4728.9,0.5243]
[1757715762536,0.423,4729.1,4729.0,1.3466]
[1757715762936,2.70387976,4729.2,4729.0,1.3466]
[1757715763239,0.423,4729.1,4729.0,1.3466]
[1757715764331,2.70387976,4729.2,4729.0,1.3466]
[1757715764532,2.70387976,4729.2,4728.9,0.5243]
[1757715764533,3.2078,4730.0,4729.1,5.3466]
[1757715764736,0.423,4729.9,4729.1,1.3466]
[1757715765233,0.423,4729.8,4729.1,1.3466]
[1757715765734,1.3419,4729.7,4728.9,3.2078]
[1757715765939,0.423,4729.6,4728.9,3.2078]
[1757715766642,1.2853,4728.8,4728.4,3.2078]
[1757715766941,1.2853,4728.6,4728.4,3.2078]
[1757715767139,30.887,4728.7,4728.4,3.2078]
[1757715767436,30.464,4728.7,4728.4,3.2078]
[1757715767639,0.423,4728.6,4728.4,3.2078]
[1757715768438,1.2853,4728.5,4728.4,3.2078]
[1757715769144,1.2853,4728.4,4727.0,3.2078]
[1757715769440,1.2853,4727.9,4727.0,3.2078]
[1757715769744,3.2078,4728.5,4727.5,3.2078]
[1757715769745,0.423,4727.8,4727.5,3.2078]
[1757715770246,4.0,4727.7,4727.5,3.2078]
[1757715770443,1.2853,4727.6,4727.5,3.2078]
[1757715770641,1.2853,4727.6,4723.9,1.08196541]
[1757715770642,4.0,4727.6,4726.0,1.24944215]
[1757715770840,3.2078,4726.1,4723.4,4.41274212]
[1757715771139,30.464,4726.9,4723.4,4.41274212]
[1757715771140,3.2078,4725.4,4723.9,3.2078]
[1757715771339,3.2078,4725.4,4723.8,3.2078]
[1757715771644,0.423,4725.3,4723.8,3.2078]
[1757715771937,0.423,4725.3,4723.5,1.409]
[1757715771938,3.2078,4724.8,4723.5,1.409]
[1757715772240,3.2078,4724.3,4723.5,1.409]
[1757715772444,3.2078,4723.6,4722.8,0.16091978]
[1757715772745,3.2078,4722.9,4722.8,0.16091978]
[1757715772936,34.0978,4722.9,4721.0,1.925]
[1757715773135,3.2078,4722.4,4721.0,1.925]
[1757715773343,3.2078,4722.4,4717.0,1.08196541]
[1757715773344,4.423,4722.3,4719.8,3.2078]
[1757715773536,3.2078,4721.2,4719.8,3.2078]
[1757715773737,30.892,4721.1,4719.8,3.2078]
[1757715773938,3.2078,4720.7,4719.7,3.2078]
[1757715774139,30.469,4721.1,4719.7,4.6168]
[1757715774342,0.423,4721.0,4719.9,3.2078]
[1757715774538,3.2078,4720.8,4719.6,3.2078]
[1757715775036,3.2078,4720.3,4719.1,3.2078]
[1757715775237,3.2078,4719.7,4718.6,3.2078]
[1757715775436,0.423,4719.6,4718.0,3.2078]
[1757715775645,3.2078,4719.7,4718.5,3.2078]
[1757715775836,3.2078,4720.5,4718.5,3.2078]
[1757715776045,3.2078,4720.5,4719.2,3.2078]
[1757715776244,0.423,4720.4,4719.7,3.2078]
[1757715776433,30.481,4720.5,4719.3,3.2078]
[1757715776639,30.481,4720.5,4720.4,3.2078]
[1757715776842,30.904,4720.5,4719.2,3.2078]
[1757715777049,3.2078,4720.2,4719.6,3.2078]
[1757715777246,3.2078,4720.2,4718.5,3.2078]
[1757715777446,3.2078,4720.2,4719.5,3.2078]
[1757715777651,3.2078,4720.2,4715.0,2.7498095]
[1757715777652,30.481,4720.5,4720.1,3.2078]
[1757715777854,0.423,4720.4,4720.1,3.2078]
[1757715778147,0.423,4720.3,4720.1,3.2078]
[1757715778649,1.12476312,4724.6,4720.1,3.2078]
[1757715778650,30.492,4722.1,4720.1,3.2078]
[1757715778950,3.2078,4721.4,4720.0,3.2078]
[1757715779143,0.423,4721.3,4720.0,3.2078]
[1757715779344,0.423,4721.3,4720.6,3.2078]
[1757715779547,30.492,4722.1,4720.6,3.2078]
[1757715779752,0.423,4722.0,4721.7,3.2078]
[1757715780351,3.2078,4721.8,4720.2,3.2078]
[1757715780650,3.2078,4721.0,4720.2,3.2078]
[1757715780856,0.423,4720.9,4720.2,3.2078]
[1757715781051,3.2078,4720.3,4718.8,2.5358]
[1757715781246,3.2078,4719.1,4716.6,3.2078]
[1757715781447,3.2078,4719.1,4713.4,0.68894212]
[1757715781448,3.2078,4717.5,4716.1,3.2078]
[1757715781644,30.497,4720.2,4715.3,3.2078]
[1757715781645,3.2078,4716.4,4715.3,3.2078]
[1757715781942,30.497,4716.3,4715.6,3.2078]
[1757715782146,0.423,4716.2,4715.6,3.2078]
[1757715782552,0.423,4716.2,4715.0,3.2078]
[1757715782745,3.2078,4716.1,4715.0,3.2078]
[1757715783052,0.423,4716.0,4715.0,3.2078]
[1757715783252,0.423,4715.9,4715.0,3.2078]
[1757715783450,30.498,4716.3,4715.8,3.2078]
[1757715783652,0.423,4716.2,4715.8,3.2078]
[1757715784053,0.423,4716.2,4715.3,3.2078]
[1757715784460,3.2078,4716.1,4714.8,3.2078]
[1757715784865,30.498,4716.3,4715.3,3.2078]
[1757715785062,0.423,4716.0,4715.3,3.2078]
[1757715785953,3.6308,4716.0,4711.8,30.497]
[1757715786156,0.423,4716.0,4714.5,3.2078]
[1757715786354,3.2078,4715.4,4714.5,3.2078]
[1757715786664,0.423,4715.9,4714.5,3.2078]
[1757715786665,3.2078,4715.9,4714.5,3.2078]
[1757715786864,0.423,4715.8,4714.5,3.2078]
[1757715787065,3.2078,4714.6,4712.8,0.16126123]
[1757715787267,3.2078,4713.6,4712.8,0.16126123]
[1757715787462,0.423,4713.5,4712.8,0.16126123]
[1757715788064,30.519,4713.6,4713.4,3.2078]
[1757715788764,0.423,4713.5,4713.4,3.2078]
[1757715789960,30.519,4713.6,4713.4,7.2078]
[1757715789961,0.424,4713.6,4713.4,7.2078]
[1757715790360,31.8655,4715.2,4713.5,4.0]
[1757715790564,31.8655,4715.2,4714.8,3.2078]
[1757715790565,0.424,4715.1,4714.8,3.2078]
[1757715790770,0.424,4715.0,4714.8,3.2078]
[1757715791064,0.424,4714.9,4714.8,3.2078]
[1757715791455,4.424,4714.9,4714.1,3.2078]
[1757715791769,1.3375,4714.5,4714.4,3.2078]
[1757715791965,1.3375,4714.4,4713.7,3.2078]
[1757715792461,1.3375,4713.9,4713.1,3.2078]
[1757715792669,0.5251,4713.0,4712.8,0.16126123]
[1757715792858,1.7615,4712.9,4712.8,0.16126123]
[1757715793255,0.424,4712.9,4712.8,0.16126123]
[1757715793462,1.7615,4712.9,4712.8,0.16126123]
[1757715794066,30.535,4713.3,4712.8,0.16126123]
[1757715794365,30.535,4713.3,4713.2,3.2078]
[1757715794568,30.959,4713.3,4713.2,3.2078]
[1757715794770,30.535,4713.3,4713.2,3.2078]
[1757715795162,30.959,4713.3,4713.2,3.2078]
[1757715795357,30.542,4714.9,4713.2,7.2078]
[1757715795566,0.424,4714.8,4712.8,0.16126123]
[1757715795766,1.7615,4714.8,4714.7,3.2078]
[1757715796468,0.424,4714.8,4714.7,3.2078]
[1757715797969,1.3375,4714.8,4714.7,3.2078]
[1757715798272,0.424,4714.8,4714.7,3.2078]
[1757715799172,4.424,4714.8,4714.1,3.2078]
[1757715799375,1.3375,4714.7,4714.1,3.2078]
[1757715799571,1.3375,4714.5,4714.1,3.2078]
[1757715799871,30.542,4714.9,4714.1,3.2078]
[1757715799872,1.3375,4714.3,4714.1,3.2078]
[1757715800071,0.424,4714.2,4714.1,3.2078]
[1757715800274,1.7615,4714.2,4714.1,3.2078]
[1757715800477,1.3375,4714.2,4714.1,3.2078]
[1757715800775,1.7615,4714.2,4714.1,2.4537]
[1757715800967,1.3375,4714.2,4714.1,2.4537]
[1757715801274,0.424,4714.2,4714.1,2.4537]
[1757715801471,30.542,4714.9,4714.1,2.4537]
[1757715801769,1.3375,4716.4,4714.8,3.2078]
[1757715801970,0.424,4716.3,4715.6,3.2078]
[1757715802271,1.3375,4716.2,4716.1,3.2078]
[1757715802773,0.424,4716.2,4716.1,3.2078]
[1757715803075,1.7615,4716.2,4716.1,3.2078]
[1757715803470,1.7615,4716.2,4715.6,3.2078]
[1757715803471,0.5251,4716.0,4715.6,3.2078]
[1757715803672,1.3375,4715.8,4715.6,3.2078]
[1757715803877,0.424,4716.4,4715.6,3.2078]
[1757715804077,1.12476312,4718.6,4716.2,3.2078]
[1757715804273,1.12476312,4719.2,4718.5,3.2078]
[1757715804476,1.3375,4719.2,4719.1,3.00108273]
[1757715804774,4.5453,4719.2,4718.3,3.2078]
[1757715804975,1.8626,4719.0,4718.2,3.2078]
[1757715805170,1.8626,4719.0,4717.6,3.2078]
[1757715805171,1.3375,4718.6,4717.6,3.2078]
[1757715805365,0.424,4718.5,4717.6,3.2078]
[1757715805778,1.3375,4718.4,4717.8,3.2078]
[1757715805979,1.3375,4717.9,4717.8,3.2078]
[1757715806174,1.7615,4717.9,4717.8,3.2078]
[1757715806676,1.3375,4717.9,4717.8,3.2078]
[1757715806878,1.7615,4717.9,4717.8,3.2078]
[1757715807071,1.7615,4717.9,4717.7,3.2078]
[1757715807072,5.7615,4717.9,4717.7,3.2078]
[1757715807271,0.424,4717.8,4717.7,3.2078]
[1757715807473,1.8425,4717.8,4717.7,3.2078]
[1757715807976,5.8425,4717.8,4717.7,3.2078]
[1757715808178,0.5865,4717.0,4716.7,3.2078]
[1757715808376,0.424,4716.9,4716.7,3.2078]
[1757715808577,1.4185,4716.8,4716.7,3.2078]
[1757715809376,0.424,4716.9,4716.7,3.2078]
[1757715809774,1.8425,4716.9,4716.7,3.2078]
[1757715809980,0.5865,4717.0,4716.7,3.2078]
[1757715810283,30.544,4717.2,4716.7,3.2078]
[1757715810776,0.5251,4719.6,4716.7,3.2078]
[1757715810777,31.9605,4718.7,4716.8,4.27757543]
[1757715811081,1.4185,4718.5,4718.1,3.2078]
[1757715811380,1.4185,4718.3,4717.4,3.2078]
[1757715811572,0.424,4718.2,4717.4,3.2078]
[1757715811776,1.4185,4718.1,4717.9,3.2078]
[1757715812079,0.424,4718.0,4717.9,3.2078]
[1757715812777,30.542,4718.7,4717.9,3.2078]
[1757715813082,30.542,4718.7,4718.6,3.2078]
[1757715813673,1.9436,4719.6,4718.6,3.2078]
[1757715813876,0.424,4719.5,4718.6,3.2078]
[1757715816581,2.005,4718.7,4718.6,3.2078]
[1757715816884,2.429,4718.7,4718.6,3.2078]
[1757715817482,2.429,4718.7,4715.4,0.899]
[1757715817483,2.429,4718.7,4718.0,3.2078]
[1757715819378,1.0105,4718.7,4718.0,3.2078]
[1757715819587,2.005,4716.9,4716.8,3.2078]
[1757715819881,1.4185,4716.9,4716.8,3.2078]
[1757715820080,1.8425,4716.9,4716.8,3.2078]
[1757715820479,0.424,4716.9,4716.8,3.2078]
[1757715820679,1.8425,4716.9,4716.8,3.2078]
[1757715820879,0.5865,4716.8,4716.4,1.5492]
[1757715821086,1.4185,4716.7,4716.4,1.5492]
[1757715821675,1.4185,4716.5,4716.4,1.5492]
[1757715822085,5.4185,4716.5,4716.4,1.5492]
[1757715822381,1.4185,4716.4,4715.8,3.2078]
[1757715822586,0.424,4716.3,4715.8,3.2078]
[1757715822780,1.4185,4716.2,4715.8,3.2078]
[1757715823079,1.4185,4716.2,4715.4,0.899]
[1757715823281,0.424,4716.3,4716.1,4.6358]
[1757715823479,0.424,4716.3,4716.2,3.2078]
[1757715823683,1.8425,4716.3,4716.2,3.2078]
[1757715826690,4.424,4716.3,4715.8,0.6488]
[1757715826888,1.3401,4715.9,4715.8,0.6488]
[1757715827090,1.7641,4715.9,4715.8,0.6488]
[1757715827290,0.424,4715.9,4715.6,3.2078]
[1757715827495,1.3401,4715.8,4715.6,3.2078]
[1757715827684,1.3401,4715.8,4715.4,0.899]
[1757715828189,1.3401,4715.8,4715.5,3.2078]
[1757715828392,1.3401,4715.8,4715.4,0.899]
[1757715828597,0.424,4715.9,4715.4,0.899]
[1757715828788,0.21206,4715.8,4714.3,3.2078]
[1757715829091,0.21206,4715.8,4713.2,1.4134]
[1757715829092,0.5753,4714.4,4713.2,3.2078]
[1757715829390,1.3401,4714.2,4713.2,3.2078]
[1757715829591,1.3401,4714.2,4712.8,0.16126123]
[1757715829592,1.3401,4714.2,4713.7,3.2078]
[1757715829789,30.965,4714.3,4713.7,3.2078]
[1757715829995,32.3051,4714.3,4713.7,3.8585]
[1757715830187,30.541,4714.3,4714.2,3.2078]
[1757715830383,30.965,4714.3,4714.2,3.2078]
[1757715830591,32.3051,4714.3,4714.2,3.2078]
[1757715830990,30.965,4714.3,4714.2,3.2078]
[1757715831793,30.541,4714.3,4714.2,4.6212]
[1757715831991,30.965,4714.3,4714.2,4.6212]
[1757715832192,30.965,4714.3,4714.2,3.2078]
[1757715832397,32.3051,4714.3,4714.2,3.2078]
[1757715832690,36.3051,4714.3,4713.7,0.6507]
[1757715832896,0.5753,4713.6,4713.2,3.2078]